[Event "Titled Tuesday Blitz May 10 Late 2022"]
[White "Romero Ruscalleda, Josep"]
[Black "Vlassov, Nikolai"]
[WhiteFideId "2231859"]
[BlackFideId "4103360"]
[WhiteElo "2293"]
[BlackElo "2407"]
[Result "1-0"]
[Round "01"]
[TimeControl "180+1"]
[Date "2022.05.11"]
[WhiteClock "0:00:30"]
[BlackClock "0:00:22"]

1. e4 {[%clk 0:03:00]}  Nc6 {[%clk 0:02:59]} 2. d4 {[%clk 0:03:00]}  d5 {[%clk 0:02:58]} 3. Nc3 {[%clk 0:02:57]}  e5 {[%clk 0:02:58]} 4. Nxd5 {[%clk 0:02:50]}  exd4 {[%clk 0:02:50]} 5. Nf3 {[%clk 0:02:50]}  Bc5 {[%clk 0:02:47]} 6. Bb5 {[%clk 0:02:47]}  a6 {[%clk 0:02:41]} 7. Bxc6+ {[%clk 0:02:45]}  bxc6 {[%clk 0:02:41]} 8. Nf4 {[%clk 0:02:46]}  Bb6 {[%clk 0:02:36]} 9. O-O {[%clk 0:02:45]}  Nf6 {[%clk 0:02:33]} 10. e5 {[%clk 0:02:43]}  Nd5 {[%clk 0:02:33]} 11. a4 {[%clk 0:02:31]}  O-O {[%clk 0:02:25]} 12. a5 {[%clk 0:02:15]}  Ba7 {[%clk 0:02:25]} 13. Qd3 {[%clk 0:01:56]}  Nb4 {[%clk 0:02:12]} 14. Qe4 {[%clk 0:01:52]}  Qd5 {[%clk 0:02:11]} 15. Nxd5 {[%clk 0:01:50]}  cxd5 {[%clk 0:02:11]} 16. Qe2 {[%clk 0:01:43]}  Bf5 {[%clk 0:02:09]} 17. c3 {[%clk 0:01:39]}  d3 {[%clk 0:01:59]} 18. Qd1 {[%clk 0:01:31]}  Nc2 {[%clk 0:01:56]} 19. Ra4 {[%clk 0:01:31]}  c5 {[%clk 0:01:55]} 20. Rf4 {[%clk 0:01:29]}  Be4 {[%clk 0:01:53]} 21. Ng5 {[%clk 0:01:23]}  Bg6 {[%clk 0:01:52]} 22. h4 {[%clk 0:01:20]}  h6 {[%clk 0:01:50]} 23. Nf3 {[%clk 0:01:16]}  c4 {[%clk 0:01:49]} 24. Nd4 {[%clk 0:01:14]}  Bxd4 {[%clk 0:01:31]} 25. cxd4 {[%clk 0:01:06]}  Rab8 {[%clk 0:01:32]} 26. h5 {[%clk 0:01:05]}  Bh7 {[%clk 0:01:30]} 27. Rg4 {[%clk 0:01:01]}  Kh8 {[%clk 0:01:22]} 28. f4 {[%clk 0:01:01]}  Bf5 {[%clk 0:01:19]} 29. Rg3 {[%clk 0:00:58]}  Nxd4 {[%clk 0:01:16]} 30. Rf2 {[%clk 0:00:52]}  Rb5 {[%clk 0:01:13]} 31. Be3 {[%clk 0:00:51]}  Ne2+ {[%clk 0:01:06]} 32. Rxe2 {[%clk 0:00:51]}  dxe2 {[%clk 0:01:07]} 33. Qxe2 {[%clk 0:00:51]}  Rxa5 {[%clk 0:01:07]} 34. Bd4 {[%clk 0:00:49]}  Rg8 {[%clk 0:00:53]} 35. e6 {[%clk 0:00:40]}  f6 {[%clk 0:00:24]} 36. Bxf6 {[%clk 0:00:34]}  gxf6 {[%clk 0:00:24]} 37. Rxg8+ {[%clk 0:00:33]}  Kxg8 {[%clk 0:00:25]} 38. e7 {[%clk 0:00:34]}  Ra1+ {[%clk 0:00:22]} 39. Kh2 {[%clk 0:00:33]}  Bd7 {[%clk 0:00:23]} 40. e8=Q+ {[%clk 0:00:33]}  Bxe8 {[%clk 0:00:23]} 41. Qxe8+ {[%clk 0:00:33]}  Kg7 {[%clk 0:00:24]} 42. Qg6+ {[%clk 0:00:32]}  Kf8 {[%clk 0:00:24]} 43. Qxf6+ {[%clk 0:00:32]}  Ke8 {[%clk 0:00:25]} 44. Qe6+ {[%clk 0:00:32]}  Kd8 {[%clk 0:00:24]} 45. Qxd5+ {[%clk 0:00:32]}  Ke8 {[%clk 0:00:24]} 46. Qxc4 {[%clk 0:00:32]}  a5 {[%clk 0:00:24]} 47. Qe6+ {[%clk 0:00:31]}  Kd8 {[%clk 0:00:24]} 48. Qxh6 {[%clk 0:00:31]}  a4 {[%clk 0:00:23]} 49. Qb6+ {[%clk 0:00:31]}  Kd7 {[%clk 0:00:23]} 50. h6 {[%clk 0:00:31]}  a3 {[%clk 0:00:22]} 51. bxa3 {[%clk 0:00:30]}  Rb1 {[%clk 0:00:22]} 52. Qxb1 {[%clk 0:00:30]} 1-0


[Site "https://www.chess.com"]

[Event "Titled Tuesday Blitz May 10 Late 2022"]
[White "Rosenberg, Evan S"]
[Black "Leitao, Rafael"]
[WhiteFideId "2019299"]
[BlackFideId "2101246"]
[WhiteElo "2375"]
[BlackElo "2609"]
[Result "0-1"]
[Round "01"]
[TimeControl "180+1"]
[Date "2022.05.11"]
[WhiteClock "0:00:07"]
[BlackClock "0:00:19"]

1. d4 {[%clk 0:02:58]}  Nf6 {[%clk 0:02:58]} 2. Nf3 {[%clk 0:02:58]}  e6 {[%clk 0:02:57]} 3. c4 {[%clk 0:02:58]}  d5 {[%clk 0:02:57]} 4. Nc3 {[%clk 0:02:57]}  Bb4 {[%clk 0:02:56]} 5. cxd5 {[%clk 0:02:56]}  exd5 {[%clk 0:02:55]} 6. Bd2 {[%clk 0:02:55]}  O-O {[%clk 0:02:53]} 7. e3 {[%clk 0:02:55]}  Bf5 {[%clk 0:02:42]} 8. Be2 {[%clk 0:02:54]}  h6 {[%clk 0:02:41]} 9. O-O {[%clk 0:02:48]}  Bd6 {[%clk 0:02:33]} 10. h3 {[%clk 0:02:45]}  c6 {[%clk 0:02:30]} 11. Rc1 {[%clk 0:02:41]}  Nbd7 {[%clk 0:02:29]} 12. Na4 {[%clk 0:02:37]}  Qe7 {[%clk 0:02:27]} 13. a3 {[%clk 0:02:32]}  Ne4 {[%clk 0:02:21]} 14. Be1 {[%clk 0:02:32]}  a5 {[%clk 0:02:17]} 15. Nc3 {[%clk 0:02:05]}  Ndf6 {[%clk 0:02:10]} 16. Nxe4 {[%clk 0:02:04]}  dxe4 {[%clk 0:01:55]} 17. Nd2 {[%clk 0:01:56]}  Bc7 {[%clk 0:01:50]} 18. Nc4 {[%clk 0:01:48]}  Nd5 {[%clk 0:01:45]} 19. Bg4 {[%clk 0:01:37]}  Bh7 {[%clk 0:01:42]} 20. Qb3 {[%clk 0:01:14]}  a4 {[%clk 0:01:36]} 21. Qa2 {[%clk 0:01:08]}  Kh8 {[%clk 0:01:36]} 22. Ne5 {[%clk 0:01:01]}  f5 {[%clk 0:01:21]} 23. Bh5 {[%clk 0:00:57]}  Bxe5 {[%clk 0:01:21]} 24. dxe5 {[%clk 0:00:58]}  f4 {[%clk 0:01:19]} 25. exf4 {[%clk 0:00:51]}  Nxf4 {[%clk 0:01:18]} 26. Bg4 {[%clk 0:00:49]}  Qg5 {[%clk 0:01:15]} 27. g3 {[%clk 0:00:41]}  Nd3 {[%clk 0:00:56]} 28. Rd1 {[%clk 0:00:35]}  Nxe5 {[%clk 0:00:47]} 29. Qe6 {[%clk 0:00:35]}  Bg8 {[%clk 0:00:44]} 30. Qd6 {[%clk 0:00:28]}  Rfd8 {[%clk 0:00:41]} 31. Qc7 {[%clk 0:00:19]}  Nxg4 {[%clk 0:00:31]} 32. Rxd8 {[%clk 0:00:18]}  Qxd8 {[%clk 0:00:29]} 33. Qxd8 {[%clk 0:00:17]}  Rxd8 {[%clk 0:00:29]} 34. hxg4 {[%clk 0:00:18]}  Bc4 {[%clk 0:00:30]} 35. Ba5 {[%clk 0:00:17]}  Rd5 {[%clk 0:00:26]} 36. Rc1 {[%clk 0:00:17]}  b5 {[%clk 0:00:26]} 37. Bc3 {[%clk 0:00:16]}  Kg8 {[%clk 0:00:26]} 38. Kg2 {[%clk 0:00:15]}  Kf7 {[%clk 0:00:26]} 39. Re1 {[%clk 0:00:14]}  Rd3 {[%clk 0:00:26]} 40. Kg1 {[%clk 0:00:12]}  Bd5 {[%clk 0:00:26]} 41. Re3 {[%clk 0:00:09]}  Rd1+ {[%clk 0:00:25]} 42. Kg2 {[%clk 0:00:09]}  g6 {[%clk 0:00:24]} 43. g5 {[%clk 0:00:08]}  hxg5 {[%clk 0:00:23]} 44. Kh3 {[%clk 0:00:07]}  Be6+ {[%clk 0:00:23]} 45. Kg2 {[%clk 0:00:08]}  Bd5 {[%clk 0:00:21]} 46. Kh3 {[%clk 0:00:08]}  Rh1+ {[%clk 0:00:19]} 47. Kg4 {[%clk 0:00:07]}  Rh5 {[%clk 0:00:19]} 0-1


[Site "https://www.chess.com"]

[Event "Titled Tuesday Blitz May 10 Late 2022"]
[White "Sanchez, Robert"]
[Black "Araujo Sanchez, Josue"]
[WhiteFideId "2034360"]
[BlackFideId "6416896"]
[WhiteElo "2191"]
[BlackElo "2339"]
[Result "1-0"]
[Round "01"]
[TimeControl "180+1"]
[Date "2022.05.11"]
[WhiteClock "0:00:32"]
[BlackClock "0:00:20"]

1. e4 {[%clk 0:03:00]}  c5 {[%clk 0:02:52]} 2. Nf3 {[%clk 0:03:00]}  d6 {[%clk 0:02:51]} 3. d4 {[%clk 0:03:00]}  cxd4 {[%clk 0:02:51]} 4. Nxd4 {[%clk 0:03:01]}  Nf6 {[%clk 0:02:50]} 5. Nc3 {[%clk 0:03:02]}  a6 {[%clk 0:02:50]} 6. Be3 {[%clk 0:03:02]}  e5 {[%clk 0:02:50]} 7. Nb3 {[%clk 0:03:02]}  Be7 {[%clk 0:02:50]} 8. f3 {[%clk 0:03:03]}  h5 {[%clk 0:02:47]} 9. Qd2 {[%clk 0:03:02]}  Be6 {[%clk 0:02:46]} 10. O-O-O {[%clk 0:03:03]}  Nbd7 {[%clk 0:02:46]} 11. h3 {[%clk 0:03:00]}  h4 {[%clk 0:02:46]} 12. Be2 {[%clk 0:02:58]}  Rc8 {[%clk 0:02:45]} 13. Kb1 {[%clk 0:02:57]}  Qc7 {[%clk 0:02:44]} 14. f4 {[%clk 0:02:56]}  b5 {[%clk 0:02:34]} 15. Bf3 {[%clk 0:02:55]}  b4 {[%clk 0:02:30]} 16. Ne2 {[%clk 0:02:45]}  a5 {[%clk 0:02:25]} 17. f5 {[%clk 0:02:32]}  Bc4 {[%clk 0:02:24]} 18. Nbc1 {[%clk 0:02:28]}  Qb7 {[%clk 0:02:13]} 19. Bg5 {[%clk 0:02:04]}  a4 {[%clk 0:01:55]} 20. Rhe1 {[%clk 0:01:46]}  a3 {[%clk 0:01:16]} 21. b3 {[%clk 0:01:38]}  Bxe2 {[%clk 0:01:14]} 22. Rxe2 {[%clk 0:01:31]}  Rc3 {[%clk 0:01:10]} 23. Nd3 {[%clk 0:01:23]}  O-O {[%clk 0:00:58]} 24. Bxh4 {[%clk 0:01:15]}  Rfc8 {[%clk 0:00:58]} 25. Ne1 {[%clk 0:01:14]}  d5 {[%clk 0:00:55]} 26. exd5 {[%clk 0:01:04]}  Bd6 {[%clk 0:00:47]} 27. Be4 {[%clk 0:00:51]}  Qb6 {[%clk 0:00:37]} 28. g4 {[%clk 0:00:38]}  Qg1 {[%clk 0:00:33]} 29. Bf2 {[%clk 0:00:34]}  Nxe4 {[%clk 0:00:22]} 30. Rxe4 {[%clk 0:00:33]}  Qg2 {[%clk 0:00:20]} 31. Nxg2 {[%clk 0:00:32]} 1-0


[Site "https://www.chess.com"]

[Event "Titled Tuesday Blitz May 10 Late 2022"]
[White "Saveliev, Alexei"]
[Black "Boidiya, Sidi"]
[WhiteFideId "24128546"]
[BlackFideId "19600100"]
[WhiteElo "2281"]
[BlackElo "2113"]
[Result "1-0"]
[Round "01"]
[TimeControl "180+1"]
[Date "2022.05.11"]
[WhiteClock "0:00:48"]
[BlackClock "0:00:49"]

1. c4 {[%clk 0:03:00]}  c6 {[%clk 0:02:56]} 2. Nc3 {[%clk 0:03:01]}  d5 {[%clk 0:02:56]} 3. cxd5 {[%clk 0:03:02]}  cxd5 {[%clk 0:02:55]} 4. d4 {[%clk 0:03:02]}  Nf6 {[%clk 0:02:56]} 5. Nf3 {[%clk 0:03:03]}  e6 {[%clk 0:02:55]} 6. Bf4 {[%clk 0:03:03]}  Bd6 {[%clk 0:02:55]} 7. Bg5 {[%clk 0:03:03]}  Qb6 {[%clk 0:02:53]} 8. Qc2 {[%clk 0:02:56]}  Nbd7 {[%clk 0:02:46]} 9. e3 {[%clk 0:02:52]}  O-O {[%clk 0:02:44]} 10. Bd3 {[%clk 0:02:51]}  a6 {[%clk 0:02:44]} 11. O-O {[%clk 0:02:50]}  h6 {[%clk 0:02:44]} 12. Bh4 {[%clk 0:02:50]}  Qc7 {[%clk 0:02:44]} 13. Rac1 {[%clk 0:02:45]}  b5 {[%clk 0:02:43]} 14. Qe2 {[%clk 0:02:37]}  Qb6 {[%clk 0:02:36]} 15. e4 {[%clk 0:02:32]}  dxe4 {[%clk 0:02:34]} 16. Nxe4 {[%clk 0:02:33]}  Bb7 {[%clk 0:02:19]} 17. Nxf6+ {[%clk 0:02:23]}  Nxf6 {[%clk 0:02:17]} 18. Bxf6 {[%clk 0:02:23]}  gxf6 {[%clk 0:02:18]} 19. Be4 {[%clk 0:02:23]}  f5 {[%clk 0:02:17]} 20. Bxb7 {[%clk 0:02:21]}  Qxb7 {[%clk 0:02:17]} 21. Ne5 {[%clk 0:02:21]}  Bxe5 {[%clk 0:02:17]} 22. Qxe5 {[%clk 0:02:12]}  Rac8 {[%clk 0:02:14]} 23. Qf6 {[%clk 0:02:03]}  Rxc1 {[%clk 0:02:04]} 24. Rxc1 {[%clk 0:02:04]}  Rc8 {[%clk 0:02:04]} 25. Rd1 {[%clk 0:01:56]}  Qe4 {[%clk 0:01:59]} 26. Qxh6 {[%clk 0:01:46]}  Rc2 {[%clk 0:01:58]} 27. h3 {[%clk 0:01:36]}  Rxb2 {[%clk 0:01:34]} 28. d5 {[%clk 0:01:23]}  Rb1 {[%clk 0:01:31]} 29. Qg5+ {[%clk 0:01:19]}  Kh7 {[%clk 0:01:29]} 30. Qh5+ {[%clk 0:01:14]}  Kg7 {[%clk 0:01:29]} 31. d6 {[%clk 0:01:12]}  Rxd1+ {[%clk 0:01:25]} 32. Qxd1 {[%clk 0:01:13]}  Qa8 {[%clk 0:01:08]} 33. Qd4+ {[%clk 0:01:09]}  f6 {[%clk 0:01:04]} 34. d7 {[%clk 0:01:06]}  Qd8 {[%clk 0:01:04]} 35. Qd6 {[%clk 0:01:05]}  Kf7 {[%clk 0:01:04]} 36. h4 {[%clk 0:01:04]}  a5 {[%clk 0:01:02]} 37. h5 {[%clk 0:01:01]}  a4 {[%clk 0:01:02]} 38. h6 {[%clk 0:00:59]}  Kg6 {[%clk 0:01:02]} 39. Qxe6 {[%clk 0:00:55]}  Qa5 {[%clk 0:00:50]} 40. Qe8+ {[%clk 0:00:52]}  Kxh6 {[%clk 0:00:50]} 41. d8=Q {[%clk 0:00:52]}  Qc3 {[%clk 0:00:49]} 42. Qe3+ {[%clk 0:00:48]} 1-0


[Site "https://www.chess.com"]

[Event "Titled Tuesday Blitz May 10 Late 2022"]
[White "Shapiro, Daniel"]
[Black "Arabidze, Meri"]
[WhiteFideId "2001780"]
[BlackFideId "13604040"]
[WhiteElo "2336"]
[BlackElo "2335"]
[Result "0-1"]
[Round "01"]
[TimeControl "180+1"]
[Date "2022.05.11"]
[WhiteClock "0:00:01"]
[BlackClock "0:00:04"]

1. d4 {[%clk 0:02:59]}  d5 {[%clk 0:02:58]} 2. c4 {[%clk 0:02:58]}  dxc4 {[%clk 0:02:58]} 3. e4 {[%clk 0:02:57]}  Nc6 {[%clk 0:02:57]} 4. Be3 {[%clk 0:02:56]}  Nf6 {[%clk 0:02:50]} 5. f3 {[%clk 0:02:56]}  e5 {[%clk 0:02:48]} 6. d5 {[%clk 0:02:56]}  Nd4 {[%clk 0:02:48]} 7. Bxd4 {[%clk 0:02:56]}  exd4 {[%clk 0:02:49]} 8. Qxd4 {[%clk 0:02:56]}  c6 {[%clk 0:02:47]} 9. Nc3 {[%clk 0:02:51]}  cxd5 {[%clk 0:02:47]} 10. exd5 {[%clk 0:02:48]}  Bd6 {[%clk 0:02:45]} 11. Bxc4 {[%clk 0:02:45]}  O-O {[%clk 0:02:45]} 12. Nge2 {[%clk 0:02:43]}  Qe7 {[%clk 0:02:28]} 13. Qh4 {[%clk 0:02:17]}  a6 {[%clk 0:02:24]} 14. a4 {[%clk 0:02:01]}  Bf5 {[%clk 0:02:19]} 15. O-O {[%clk 0:01:54]}  Rac8 {[%clk 0:02:19]} 16. Rae1 {[%clk 0:01:42]}  Qc7 {[%clk 0:02:02]} 17. Ba2 {[%clk 0:01:31]}  Bg6 {[%clk 0:02:01]} 18. Kh1 {[%clk 0:01:24]}  Qb6 {[%clk 0:02:00]} 19. b3 {[%clk 0:01:11]}  Bb4 {[%clk 0:01:55]} 20. Rc1 {[%clk 0:01:05]}  Bd3 {[%clk 0:01:54]} 21. Rfd1 {[%clk 0:01:00]}  Bg6 {[%clk 0:01:25]} 22. Bb1 {[%clk 0:00:58]}  Bxc3 {[%clk 0:01:21]} 23. Bxg6 {[%clk 0:00:47]}  hxg6 {[%clk 0:01:21]} 24. Rxc3 {[%clk 0:00:40]}  Rxc3 {[%clk 0:01:20]} 25. Nxc3 {[%clk 0:00:39]}  Qxb3 {[%clk 0:01:20]} 26. Qd4 {[%clk 0:00:40]}  Rd8 {[%clk 0:01:06]} 27. d6 {[%clk 0:00:39]}  Qe6 {[%clk 0:01:01]} 28. h3 {[%clk 0:00:36]}  Rd7 {[%clk 0:01:00]} 29. Qb6 {[%clk 0:00:30]}  Qf5 {[%clk 0:00:41]} 30. a5 {[%clk 0:00:22]}  Qe5 {[%clk 0:00:37]} 31. Na4 {[%clk 0:00:18]}  Ne8 {[%clk 0:00:24]} 32. Qb4 {[%clk 0:00:05]}  Rxd6 {[%clk 0:00:21]} 33. Re1 {[%clk 0:00:05]}  Qg3 {[%clk 0:00:09]} 34. Rxe8+ {[%clk 0:00:04]}  Kh7 {[%clk 0:00:09]} 35. Re1 {[%clk 0:00:02]}  Rd5 {[%clk 0:00:05]} 36. Qe4 {[%clk 0:00:02]}  Rxa5 {[%clk 0:00:04]} 37. Nc3 {[%clk 0:00:01]}  Rg5 {[%clk 0:00:04]} 0-1


[Site "https://www.chess.com"]

[Event "Titled Tuesday Blitz May 10 Late 2022"]
[White "Shapiro, David"]
[Black "Curtis, John"]
[WhiteFideId "24133523"]
[BlackFideId "3200256"]
[WhiteElo "2300"]
[BlackElo "2203"]
[Result "1/2-1/2"]
[Round "01"]
[TimeControl "180+1"]
[Date "2022.05.11"]
[WhiteClock "0:00:45"]
[BlackClock "0:01:32"]

1. d4 {[%clk 0:02:59]}  Nf6 {[%clk 0:02:59]} 2. Bf4 {[%clk 0:02:58]}  d6 {[%clk 0:02:56]} 3. Nc3 {[%clk 0:02:57]}  g6 {[%clk 0:02:51]} 4. e4 {[%clk 0:02:56]}  c6 {[%clk 0:02:50]} 5. Qd2 {[%clk 0:02:55]}  b5 {[%clk 0:02:49]} 6. f3 {[%clk 0:02:55]}  b4 {[%clk 0:02:49]} 7. Nd1 {[%clk 0:02:54]}  a5 {[%clk 0:02:49]} 8. Nf2 {[%clk 0:02:39]}  Nbd7 {[%clk 0:02:41]} 9. Ne2 {[%clk 0:02:25]}  e5 {[%clk 0:02:40]} 10. Be3 {[%clk 0:02:24]}  Ba6 {[%clk 0:02:25]} 11. Bh6 {[%clk 0:02:11]}  Bxh6 {[%clk 0:02:21]} 12. Qxh6 {[%clk 0:02:10]}  Bxe2 {[%clk 0:02:21]} 13. Bxe2 {[%clk 0:02:11]}  exd4 {[%clk 0:02:21]} 14. Rd1 {[%clk 0:01:59]}  Qb6 {[%clk 0:02:18]} 15. Bc4 {[%clk 0:01:47]}  Ne5 {[%clk 0:02:13]} 16. Qg7 {[%clk 0:01:45]}  Ke7 {[%clk 0:02:13]} 17. Be2 {[%clk 0:01:07]}  h6 {[%clk 0:02:12]} 18. f4 {[%clk 0:00:59]}  Rag8 {[%clk 0:02:05]} 19. Qxg8 {[%clk 0:00:56]}  Rxg8 {[%clk 0:02:04]} 20. fxe5 {[%clk 0:00:57]}  dxe5 {[%clk 0:02:04]} 21. O-O {[%clk 0:00:51]}  g5 {[%clk 0:02:01]} 22. Bc4 {[%clk 0:00:48]}  h5 {[%clk 0:01:57]} 23. Nd3 {[%clk 0:00:47]}  Ng4 {[%clk 0:01:32]} 24. Rxf7+ {[%clk 0:00:45]}  Kd8 {[%clk 0:01:32]} 1/2-1/2


[Site "https://www.chess.com"]

[Event "Titled Tuesday Blitz May 10 Late 2022"]
[White "Shimanov, Aleksandr"]
[Black "Bettalli, Francesco"]
[WhiteFideId "4198603"]
[BlackFideId "2816453"]
[WhiteElo "2605"]
[BlackElo "2216"]
[Result "1-0"]
[Round "01"]
[TimeControl "180+1"]
[Date "2022.05.10"]
[WhiteClock "0:00:59"]
[BlackClock "0:01:14"]

1. d4 {[%clk 0:03:00]}  Nf6 {[%clk 0:02:30]} 2. Nc3 {[%clk 0:02:58]}  d5 {[%clk 0:02:30]} 3. Bf4 {[%clk 0:02:58]}  c5 {[%clk 0:02:30]} 4. e4 {[%clk 0:02:58]}  cxd4 {[%clk 0:02:24]} 5. Qxd4 {[%clk 0:02:57]}  Nc6 {[%clk 0:02:24]} 6. Bb5 {[%clk 0:02:56]}  e6 {[%clk 0:02:18]} 7. exd5 {[%clk 0:02:46]}  exd5 {[%clk 0:02:18]} 8. O-O-O {[%clk 0:02:43]}  Be6 {[%clk 0:02:17]} 9. Nf3 {[%clk 0:02:39]}  Be7 {[%clk 0:02:10]} 10. Qa4 {[%clk 0:02:25]}  O-O {[%clk 0:02:00]} 11. Nd4 {[%clk 0:02:15]}  Nxd4 {[%clk 0:01:57]} 12. Qxd4 {[%clk 0:02:16]}  a6 {[%clk 0:01:55]} 13. Bd3 {[%clk 0:02:16]}  Rc8 {[%clk 0:01:53]} 14. Be5 {[%clk 0:01:32]}  Ne8 {[%clk 0:01:44]} 15. Kb1 {[%clk 0:01:28]}  Bf6 {[%clk 0:01:39]} 16. Rhe1 {[%clk 0:01:25]}  Bxe5 {[%clk 0:01:39]} 17. Rxe5 {[%clk 0:01:25]}  Nf6 {[%clk 0:01:39]} 18. f4 {[%clk 0:01:22]}  Bg4 {[%clk 0:01:38]} 19. Rde1 {[%clk 0:01:22]}  Qa5 {[%clk 0:01:34]} 20. h3 {[%clk 0:01:20]}  Bd7 {[%clk 0:01:29]} 21. g4 {[%clk 0:01:16]}  Rfe8 {[%clk 0:01:27]} 22. g5 {[%clk 0:01:14]}  Ne4 {[%clk 0:01:27]} 23. Bxe4 {[%clk 0:01:10]}  Rxe5 {[%clk 0:01:26]} 24. Qxe5 {[%clk 0:01:10]}  Rxc3 {[%clk 0:01:17]} 25. bxc3 {[%clk 0:01:00]}  Qb6+ {[%clk 0:01:14]} 26. Ka1 {[%clk 0:01:00]}  dxe4 {[%clk 0:01:14]} 27. Qb8+ {[%clk 0:00:59]} 1-0


[Site "https://www.chess.com"]

[Event "Titled Tuesday Blitz May 10 Late 2022"]
[White "Simonovic, Miroslav"]
[Black "Della Morte, German"]
[WhiteFideId "919152"]
[BlackFideId "113522"]
[WhiteElo "2043"]
[BlackElo "2363"]
[Result "0-1"]
[Round "01"]
[TimeControl "180+1"]
[Date "2022.05.11"]
[WhiteClock "0:00:07"]
[BlackClock "0:01:45"]

1. d4 {[%clk 0:03:00]}  Nf6 {[%clk 0:02:59]} 2. Bg5 {[%clk 0:03:00]}  d5 {[%clk 0:02:58]} 3. Bxf6 {[%clk 0:02:59]}  gxf6 {[%clk 0:02:58]} 4. e3 {[%clk 0:02:59]}  c5 {[%clk 0:02:57]} 5. c4 {[%clk 0:02:58]}  cxd4 {[%clk 0:02:53]} 6. Qxd4 {[%clk 0:02:58]}  dxc4 {[%clk 0:02:53]} 7. Qxd8+ {[%clk 0:02:55]}  Kxd8 {[%clk 0:02:54]} 8. Bxc4 {[%clk 0:02:56]}  e6 {[%clk 0:02:54]} 9. Nc3 {[%clk 0:02:53]}  Bb4 {[%clk 0:02:51]} 10. O-O-O+ {[%clk 0:02:53]}  Ke7 {[%clk 0:02:52]} 11. Nb5 {[%clk 0:02:50]}  a6 {[%clk 0:02:41]} 12. Nc7 {[%clk 0:02:48]}  Ra7 {[%clk 0:02:40]} 13. Nf3 {[%clk 0:01:58]}  Bd6 {[%clk 0:02:33]} 14. Nd5+ {[%clk 0:01:53]}  exd5 {[%clk 0:02:32]} 15. Bxd5 {[%clk 0:01:54]}  Be6 {[%clk 0:02:27]} 16. e4 {[%clk 0:01:36]}  Nc6 {[%clk 0:02:20]} 17. a3 {[%clk 0:01:34]}  Raa8 {[%clk 0:02:19]} 18. Kb1 {[%clk 0:01:31]}  Rac8 {[%clk 0:02:18]} 19. Nd4 {[%clk 0:01:25]}  Nxd4 {[%clk 0:02:17]} 20. Rxd4 {[%clk 0:01:26]}  Bxd5 {[%clk 0:02:16]} 21. exd5 {[%clk 0:01:25]}  Kd7 {[%clk 0:02:14]} 22. f4 {[%clk 0:01:15]}  Rhe8 {[%clk 0:02:13]} 23. Rhd1 {[%clk 0:01:03]}  Re2 {[%clk 0:02:12]} 24. R4d2 {[%clk 0:01:03]}  Rxd2 {[%clk 0:02:09]} 25. Rxd2 {[%clk 0:01:04]}  Bxf4 {[%clk 0:02:09]} 26. Rd4 {[%clk 0:01:01]}  Bxh2 {[%clk 0:02:06]} 27. Rh4 {[%clk 0:01:01]}  Be5 {[%clk 0:02:06]} 28. Rxh7 {[%clk 0:01:01]}  Ke7 {[%clk 0:02:06]} 29. a4 {[%clk 0:00:51]}  Rc5 {[%clk 0:02:05]} 30. Rh3 {[%clk 0:00:46]}  Rxd5 {[%clk 0:02:05]} 31. Rb3 {[%clk 0:00:47]}  Rd7 {[%clk 0:02:05]} 32. Kc2 {[%clk 0:00:45]}  Ke6 {[%clk 0:02:06]} 33. Rb6+ {[%clk 0:00:44]}  Kf5 {[%clk 0:02:06]} 34. Rb4 {[%clk 0:00:36]}  Bd4 {[%clk 0:01:57]} 35. Rc4 {[%clk 0:00:28]}  Ke4 {[%clk 0:01:55]} 36. Rc8 {[%clk 0:00:26]}  f5 {[%clk 0:01:55]} 37. Re8+ {[%clk 0:00:25]}  Kf4 {[%clk 0:01:55]} 38. b4 {[%clk 0:00:21]}  Kg5 {[%clk 0:01:50]} 39. Rg8+ {[%clk 0:00:20]}  Kf6 {[%clk 0:01:50]} 40. Kb3 {[%clk 0:00:18]}  f4 {[%clk 0:01:50]} 41. Kc4 {[%clk 0:00:14]}  Be3 {[%clk 0:01:50]} 42. Re8 {[%clk 0:00:10]}  Kf5 {[%clk 0:01:49]} 43. g3 {[%clk 0:00:09]}  fxg3 {[%clk 0:01:43]} 44. Rxe3 {[%clk 0:00:08]}  Kf4 {[%clk 0:01:43]} 45. Re1 {[%clk 0:00:08]}  g2 {[%clk 0:01:43]} 46. Rg1 {[%clk 0:00:07]}  Kf3 {[%clk 0:01:43]} 47. Kc5 {[%clk 0:00:07]}  Kf2 {[%clk 0:01:44]} 48. Rxg2+ {[%clk 0:00:07]}  Kxg2 {[%clk 0:01:45]} 0-1


[Site "https://www.chess.com"]

[Event "Titled Tuesday Blitz May 10 Late 2022"]
[White "Skliarov, Viktor"]
[Black "Ansh M Shah"]
[WhiteFideId "14106736"]
[BlackFideId "25033379"]
[WhiteElo "2229"]
[BlackElo "1819"]
[Result "1-0"]
[Round "01"]
[TimeControl "180+1"]
[Date "2022.05.11"]
[WhiteClock "0:00:18"]
[BlackClock "0:00:14"]

1. e4 {[%clk 0:02:59]}  c6 {[%clk 0:02:56]} 2. d4 {[%clk 0:02:59]}  d5 {[%clk 0:02:57]} 3. e5 {[%clk 0:02:59]}  Bf5 {[%clk 0:02:56]} 4. Nf3 {[%clk 0:03:00]}  e6 {[%clk 0:02:55]} 5. Be2 {[%clk 0:03:01]}  c5 {[%clk 0:02:55]} 6. O-O {[%clk 0:03:00]}  Nc6 {[%clk 0:02:55]} 7. Be3 {[%clk 0:03:00]}  Qb6 {[%clk 0:02:54]} 8. Nc3 {[%clk 0:03:00]}  Qxb2 {[%clk 0:02:31]} 9. Qe1 {[%clk 0:03:00]}  cxd4 {[%clk 0:02:22]} 10. Bxd4 {[%clk 0:02:11]}  Nxd4 {[%clk 0:01:47]} 11. Nxd4 {[%clk 0:02:06]}  Bb4 {[%clk 0:01:48]} 12. Rb1 {[%clk 0:02:04]}  Bxc3 {[%clk 0:01:26]} 13. Rxb2 {[%clk 0:02:04]}  Bxe1 {[%clk 0:01:27]} 14. Rxe1 {[%clk 0:02:05]}  b6 {[%clk 0:01:27]} 15. Nb5 {[%clk 0:02:04]}  Kf8 {[%clk 0:01:08]} 16. c4 {[%clk 0:01:27]}  Ne7 {[%clk 0:01:07]} 17. Nd6 {[%clk 0:01:21]}  Be4 {[%clk 0:01:00]} 18. f3 {[%clk 0:01:16]}  Bg6 {[%clk 0:01:00]} 19. Rc1 {[%clk 0:01:07]}  f6 {[%clk 0:00:55]} 20. f4 {[%clk 0:00:59]}  Be4 {[%clk 0:00:47]} 21. c5 {[%clk 0:00:48]}  fxe5 {[%clk 0:00:39]} 22. fxe5 {[%clk 0:00:43]}  Ng6 {[%clk 0:00:38]} 23. Rf1+ {[%clk 0:00:39]}  Kg8 {[%clk 0:00:34]} 24. Nf7 {[%clk 0:00:38]}  bxc5 {[%clk 0:00:27]} 25. Nxh8 {[%clk 0:00:37]}  Kxh8 {[%clk 0:00:28]} 26. Bg4 {[%clk 0:00:32]}  Nxe5 {[%clk 0:00:25]} 27. Bxe6 {[%clk 0:00:32]}  Re8 {[%clk 0:00:18]} 28. Re2 {[%clk 0:00:19]}  h5 {[%clk 0:00:17]} 29. Bxd5 {[%clk 0:00:18]}  Bxd5 {[%clk 0:00:15]} 30. Rfe1 {[%clk 0:00:18]}  Bxa2 {[%clk 0:00:09]} 31. Rxe5 {[%clk 0:00:15]}  Rxe5 {[%clk 0:00:09]} 32. Rxe5 {[%clk 0:00:15]}  c4 {[%clk 0:00:10]} 33. Rxh5+ {[%clk 0:00:15]}  Kg8 {[%clk 0:00:09]} 34. Ra5 {[%clk 0:00:16]}  Kf7 {[%clk 0:00:10]} 35. Rxa7+ {[%clk 0:00:16]}  Ke6 {[%clk 0:00:11]} 36. Rxa2 {[%clk 0:00:16]}  Kd5 {[%clk 0:00:10]} 37. Kf2 {[%clk 0:00:17]}  Kd4 {[%clk 0:00:11]} 38. Ke2 {[%clk 0:00:17]}  c3 {[%clk 0:00:12]} 39. Rc2 {[%clk 0:00:17]}  Kc4 {[%clk 0:00:13]} 40. g4 {[%clk 0:00:17]}  Kb3 {[%clk 0:00:14]} 41. Kd3 {[%clk 0:00:18]} 1-0


[Site "https://www.chess.com"]